fUSD/lending_fUSD_20260601
["ID","MTS","AMOUNT","RATE_DAILY","PERIOD"]
[423711303,1780325451000,-710.0,0.00028205,3]
[423711314,1780325451000,-154.65802657,0.00028278,2]
[423711318,1780325451000,-167.07861682,0.00028278,2]
[423711313,1780325451000,-184.80630817,0.00028278,2]
[423711319,1780325451000,-185.54120756,0.00028278,2]
[423711329,1780325451000,-204.64361821,0.00028339,2]
[423711331,1780325451000,-176.20722292,0.00028393,2]
[423711327,1780325451000,-163.70688747,0.00028339,2]
[423711330,1780325451000,-160.07157772,0.00028393,2]
[423711328,1780325451000,-181.25727563,0.00028339,2]
[423711324,1780325451000,-172.65641344,0.00028323,2]
[423711323,1780325451000,-158.7606211,0.00028323,2]
[423711392,1780325452000,-1006.19,0.00028821,2]
[423711391,1780325452000,-451.79,0.00028807,30]
[423711395,1780325452000,-451.79,0.00028837,2]
[423711389,1780325452000,-209.21103511,0.000288,10]
[423711390,1780325452000,-452.47,0.00028805,30]
[423711393,1780325452000,-1005.47,0.00028821,2]
[423711394,1780325452000,-452.47,0.00028836,2]
[423711409,1780325452000,-1471.44,0.00028966,2]
[423711396,1780325452000,-500.0,0.00028855,2]
[423711398,1780325452000,-451.79,0.00028867,7]
[423711404,1780325452000,-452.47,0.00028927,2]
[423711402,1780325452000,-337.0,0.000289,2]
[423711399,1780325452000,-452.47,0.00028897,30]
[423711400,1780325452000,-451.79,0.00028898,30]
[423711410,1780325452000,-1341.18,0.00028966,2]
[423711407,1780325452000,-451.79,0.00028959,7]
[423711403,1780325452000,-150.0,0.00028926,7]
[423711405,1780325452000,-451.79,0.00028928,2]
[423711406,1780325452000,-452.47,0.00028958,7]
[423711408,1780325452000,-1341.07,0.00028965,2]
[423711387,1780325452000,-1471.47,0.00028799,7]
[423711401,1780325452000,-200.0,0.000289,2]
[423711388,1780325452000,-215.65015035,0.000288,10]
[423711374,1780325452000,-710.0,0.00028739,3]
[423711386,1780325452000,-1341.18,0.00028799,7]
[423711417,1780325452000,-452.47,0.00028988,30]
[423711364,1780325452000,-452.47,0.00028714,30]
[423711366,1780325452000,-150.0,0.00028726,7]
[423711365,1780325452000,-451.79,0.00028715,30]
[423711367,1780325452000,-150.0,0.00028726,7]
[423711371,1780325452000,-185.25931037,0.00028726,7]
[423711372,1780325452000,-150.0,0.00028726,7]
[423711369,1780325452000,-150.0,0.00028726,7]
[423711370,1780325452000,-151.40936633,0.00028726,7]
[423711368,1780325452000,-277.75158038,0.00028726,7]
[423711397,1780325452000,-452.47,0.00028866,7]
[423711385,1780325452000,-1471.44,0.00028799,7]
[423711373,1780325452000,-150.0,0.00028726,7]
[423711376,1780325452000,-451.79,0.00028746,2]
[423711379,1780325452000,-1000.0,0.00028767,40]
[423711381,1780325452000,-452.47,0.00028775,7]
[423711375,1780325452000,-452.47,0.00028744,2]
[423711377,1780325452000,-182.47,0.00028767,30]
[423711383,1780325452000,-6002.46,0.00028781,7]
[423711378,1780325452000,-500.22264435,0.00028767,2]
[423711380,1780325452000,-163.0,0.00028767,14]
[423711382,1780325452000,-451.79,0.00028776,7]
[423711384,1780325452000,-1341.07,0.00028798,7]
[423711413,1780325452000,-189.13920441,0.00028971,2]
[423711462,1780325452000,-158.0,0.00029,2]
[423711415,1780325452000,-1006.19,0.00028987,30]
[423711438,1780325452000,-1564.18871426,0.00029,7]
[423711443,1780325452000,-22202.47138766,0.00029,7]
[423711448,1780325452000,-162.0,0.00029,2]
[423711444,1780325452000,-327.92668596,0.00029,2]
[423711450,1780325452000,-156.0,0.00029,2]
[423711441,1780325452000,-200.0,0.00029,2]
[423711439,1780325452000,-200.0,0.00029,2]
[423711445,1780325452000,-1000.0,0.00029,2]
[423711447,1780325452000,-5225.52,0.00029,14]
[423711440,1780325452000,-200.0,0.00029,2]
[423711446,1780325452000,-800.31,0.00029,7]
[423711458,1780325452000,-158.0,0.00029,2]
[423711459,1780325452000,-158.0,0.00029,2]
[423711461,1780325452000,-158.0,0.00029,2]
[423711463,1780325452000,-158.0,0.00029,2]
[423711411,1780325452000,-1471.47,0.00028966,2]
[423711452,1780325452000,-156.0,0.00029,2]
[423711454,1780325452000,-156.0,0.00029,2]
[423711453,1780325452000,-156.0,0.00029,2]
[423711457,1780325452000,-158.0,0.00029,2]
[423711456,1780325452000,-158.0,0.00029,2]
[423711455,1780325452000,-160.0,0.00029,2]
[423711460,1780325452000,-158.0,0.00029,2]
[423711442,1780325452000,-258.16,0.00029,2]
[423711451,1780325452000,-156.0,0.00029,2]
[423711436,1780325452000,-5000.0,0.00029,2]
[423711449,1780325452000,-156.0,0.00029,2]
[423711412,1780325452000,-40471.63904255,0.0002897,6]
[423711416,1780325452000,-1005.47,0.00028987,30]
[423711421,1780325452000,-169.57875851,0.00029,2]
[423711420,1780325452000,-675.86,0.00029,7]
[423711418,1780325452000,-451.79,0.00028989,30]
[423711419,1780325452000,-2500.0,0.00029,2]
[423711422,1780325452000,-9005.47623449,0.00029,2]
[423711423,1780325452000,-5002.0718935,0.00029,2]
[423711425,1780325452000,-10684.71129994,0.00029,2]
[423711424,1780325452000,-3263.31593061,0.00029,2]
[423711414,1780325452000,-152.0,0.00028982,3]
[423711427,1780325452000,-219.56066956,0.00029,2]
[423711428,1780325452000,-510.86440665,0.00029,2]
[423711435,1780325452000,-304733.48634923,0.00029,30]
[423711434,1780325452000,-179.503546,0.00027989,7]
[423711437,1780325452000,-6360.52,0.00029,2]
[423711433,1780325452000,-500.0,0.00012877,2]
[423711431,1780325452000,-500.0,0.00012329,2]
[423711430,1780325452000,-500.0,0.00012055,2]
[423711426,1780325452000,-598.5433452,0.00029,2]
[423711429,1780325452000,-55026.67886381,0.00029,30]
[423711432,1780325452000,-500.0,0.00012603,2]
[423711493,1780325453000,-392.11505407,0.0002913,5]
[423711484,1780325453000,-451.79,0.00029019,2]
[423711494,1780325453000,-401.77170717,0.0002913,20]
[423711492,1780325453000,-313.74453001,0.0002913,7]
[423711495,1780325453000,-1341.07,0.00029132,30]
[423711496,1780325453000,-1471.44,0.00029133,30]
[423711491,1780325453000,-300.0,0.0002913,20]
[423711487,1780325453000,-451.79,0.0002905,7]
[423711486,1780325453000,-452.47,0.00029049,7]
[423711489,1780325453000,-451.79,0.00029111,2]
[423711488,1780325453000,-451.79,0.0002908,30]
[423711490,1780325453000,-150.0,0.00029125,7]
[423711500,1780325453000,-1006.19,0.00029153,7]
[423711497,1780325453000,-1341.18,0.00029133,30]
[423711480,1780325453000,-209.21103511,0.00029,7]
[423711499,1780325453000,-451.79,0.00029141,7]
[423711485,1780325453000,-452.47,0.00029019,2]
[423711483,1780325453000,-317.0819157,0.00029,2]
[423711469,1780325453000,-162.0,0.00029,2]
[423711481,1780325453000,-215.65015035,0.00029,30]
[423711502,1780325453000,-451.79,0.00029172,30]
[423711464,1780325453000,-158.0,0.00029,2]
[423711466,1780325453000,-162.0,0.00029,2]
[423711470,1780325453000,-162.0,0.00029,2]
[423711473,1780325453000,-162.0,0.00029,2]
[423711465,1780325453000,-158.0,0.00029,2]
[423711472,1780325453000,-162.0,0.00029,2]
[423711478,1780325453000,-533.02236066,0.00029,30]
[423711467,1780325453000,-162.0,0.00029,2]
[423711471,1780325453000,-162.0,0.00029,2]
[423711474,1780325453000,-162.0,0.00029,2]
[423711476,1780325453000,-162.0,0.00029,2]
[423711477,1780325453000,-162.0,0.00029,2]
[423711479,1780325453000,-209.21103511,0.00029,30]
[423711475,1780325453000,-162.0,0.00029,2]
[423711482,1780325453000,-215.65015035,0.00029,7]
[423711468,1780325453000,-162.0,0.00029,2]
[423711507,1780325453000,-929.0,0.00029229,2]
[423711539,1780325453000,-1000.0,0.00029586,7]
[423711503,1780325453000,-150.0,0.00029182,7]
[423711524,1780325453000,-1341.07,0.000293,7]
[423711528,1780325453000,-1000.0,0.00029394,7]
[423711526,1780325453000,-300.0,0.0002933,20]
[423711532,1780325453000,-1000.0,0.00029449,7]
[423711530,1780325453000,-5225.52,0.000294,14]
[423711525,1780325453000,-150.0,0.00029324,7]
[423711527,1780325453000,-150.0,0.00029364,7]
[423711523,1780325453000,-1471.47,0.000293,7]
[423711529,1780325453000,-800.31,0.000294,7]
[423711533,1780325453000,-236.01,0.00029452,30]
[423711534,1780325453000,-1000.0,0.00029522,7]
[423711535,1780325453000,-150.0,0.00029524,7]
[423711536,1780325453000,-150.0,0.00029524,7]
[423711537,1780325453000,-300.0,0.0002953,7]
[423711538,1780325453000,-150.0,0.00029534,2]
[423711540,1780325453000,-2180.82563021,0.00029597,2]
[423711531,1780325453000,-174.67068578,0.000294,2]
[423711521,1780325453000,-1471.44,0.000293,7]
[423711498,1780325453000,-1471.47,0.00029133,30]
[423711517,1780325453000,-590.46,0.00029245,7]
[423711522,1780325453000,-1341.18,0.000293,7]
[423711504,1780325453000,-891.02,0.000292,7]
[423711506,1780325453000,-200.0,0.00029213,2]
[423711508,1780325453000,-3551.0,0.00029229,2]
[423711505,1780325453000,-451.79,0.00029202,2]
[423711520,1780325453000,-1340.9,0.000293,7]
[423711509,1780325453000,-1357.0,0.00029229,2]
[423711510,1780325453000,-1273.0,0.00029229,2]
[423711501,1780325453000,-1005.47,0.00029153,7]
[423711511,1780325453000,-1226.0,0.00029229,2]
[423711512,1780325453000,-525.0,0.00029229,2]
[423711519,1780325453000,-710.0,0.00029273,4]
[423711514,1780325453000,-932.0,0.00029229,2]
[423711516,1780325453000,-451.91,0.00029232,7]
[423711518,1780325453000,-562.02,0.00029245,7]
[423711513,1780325453000,-150.0,0.00029229,2]
[423711515,1780325453000,-6068.0,0.00029229,2]
[423711549,1780325454000,-500.0,0.00013973,2]
[423711556,1780325454000,-500.0,0.00015068,2]
[423711555,1780325454000,-395.16237986,0.00023229,2]
[423711547,1780325454000,-500.0,0.00013699,2]
[423711541,1780325454000,-500.0,0.00013151,2]
[423711544,1780325454000,-500.0,0.00013699,2]
[423711542,1780325454000,-500.0,0.00013425,2]
[423711546,1780325454000,-195.92361208,0.00013699,2]
[423711545,1780325454000,-304.07638792,0.00013699,2]
[423711548,1780325454000,-476.0641231,0.00013699,2]
[423711543,1780325454000,-500.0,0.00013699,2]
[423711552,1780325454000,-254.68063618,0.00014521,2]
[423711562,1780325454000,-2207.65083214,0.00020786,2]
[423711561,1780325454000,-246.88542416,0.00015616,2]
[423711560,1780325454000,-253.11457584,0.00015616,2]
[423711558,1780325454000,-38.61457584,0.00015342,2]
[423711557,1780325454000,-156.2070651,0.00023229,2]
[423711554,1780325454000,-280.08698396,0.0001708,2]
[423711553,1780325454000,-500.0,0.00014795,2]
[423711551,1780325454000,-245.31936382,0.00014521,2]
[423711550,1780325454000,-500.0,0.00014247,2]
[423711559,1780325454000,-461.38542416,0.00015342,2]
[423711563,1780325508000,246.78736105,0.00030129,120]
[423711564,1780325515000,249.61615968,9.998e-05,7]
[423711565,1780325604000,163.0,0.00029342,120]
[423711567,1780325671000,2033.897,0.00030137,120]
[423711568,1780325693000,-151.0,0.00010198,7]
[423711570,1780325784000,-373.68247377,8.9e-05,2]
[423711571,1780325802000,246.1,0.000301,120]
[423711572,1780325837000,-250.0,8.999e-05,2]
[423711573,1780325890000,-1200.0,9.097e-05,2]
[423711574,1780325944000,-300.0,9.097e-05,2]
[423711578,1780325997000,-1540.37451112,9.091e-05,2]
[423711579,1780326011000,-1540.37451112,9.091e-05,2]
[423711582,1780326025000,-842.65483553,9.091e-05,2]
[423711584,1780326039000,-26.60109338,9.091e-05,2]
[423711589,1780326091000,-470.29418979,9.097e-05,2]
[423711590,1780326105000,-470.29418979,9.098e-05,2]
[423711592,1780326331000,150.0,0.00030137,120]
[423711599,1780326382000,735.28,0.00028126,120]
[423711598,1780326382000,735.28,0.00027987,120]
[423711602,1780326383000,735.28,0.00029999,120]
[423711601,1780326383000,735.28,0.00029999,120]
[423711600,1780326383000,735.28,0.00029499,120]
[423711604,1780326384000,735.28,0.00029999,120]
[423711605,1780326384000,735.28,0.00029999,120]
[423711606,1780326384000,735.28,0.00030129,120]
[423711608,1780326385000,735.28,0.00030129,120]
[423711607,1780326385000,735.28,0.00030129,120]
[423711611,1780326386000,735.30895958,0.00030129,120]
[423711610,1780326386000,735.28,0.00030129,120]
[423711609,1780326386000,735.28,0.00030129,120]
[423711613,1780326421000,-539.63,9.021e-05,2]
[423711615,1780326476000,-500.0,9.049e-05,2]
[423711616,1780326489000,-1306.37736143,9.049e-05,2]
[423711617,1780326504000,-46.04263857,9.049e-05,2]
[423711618,1780326541000,2000.0,0.00030136,120]
[423711619,1780326556000,-1200.0,9.097e-05,2]
[423711620,1780326610000,-300.0,9.097e-05,2]
[423711643,1780326631000,-749.38,9.824e-05,2]
[423711644,1780326631000,-2241.9007936,9.888e-05,2]
[423711645,1780326631000,-151.0,9.895e-05,2]
[423711639,1780326631000,-158.95,9.66e-05,2]
[423711646,1780326631000,-150.0,9.896e-05,2]
[423711640,1780326631000,-948.4119,9.798e-05,2]
[423711638,1780326631000,-158.95,9.496e-05,2]
[423711637,1780326631000,-158.95,9.333e-05,2]
[423711641,1780326631000,-2500.0,9.798e-05,2]
[423711632,1780326631000,-223.85448312,9.098e-05,2]
[423711634,1780326631000,-497.71865437,9.098e-05,2]
[423711633,1780326631000,-167.65485154,9.098e-05,2]
[423711630,1780326631000,-353.65226421,9.098e-05,2]
[423711629,1780326631000,-250.0,9.098e-05,2]
[423711635,1780326631000,-759.79762558,9.098e-05,2]
[423711636,1780326631000,-222.63,9.191e-05,2]
[423711642,1780326631000,-158.95,9.824e-05,2]
[423711631,1780326631000,-485.78322047,9.098e-05,2]
[423711647,1780326631000,-560.24025674,9.897e-05,2]
[423711659,1780326631000,-23172.16112324,9.898e-05,2]
[423711651,1780326631000,-500.0,9.897e-05,2]
[423711663,1780326631000,-501.0,9.898e-05,2]
[423711661,1780326631000,-4230.82512797,9.898e-05,2]
[423711662,1780326631000,-37414.02071301,9.898e-05,2]
[423711660,1780326631000,-2146.79838063,9.898e-05,2]
[423711652,1780326631000,-205.37967781,9.897e-05,2]
[423711658,1780326631000,-278493.89744031,9.898e-05,2]
[423711665,1780326631000,-503.70314734,9.898e-05,2]
[423711653,1780326631000,-500.0,9.897e-05,2]
[423711654,1780326631000,-436.89036287,9.897e-05,2]
[423711657,1780326631000,-2000.0,9.898e-05,2]
[423711648,1780326631000,-2327.549,9.897e-05,2]
[423711655,1780326631000,-315.24775316,9.897e-05,2]
[423711649,1780326631000,-174.124,9.897e-05,2]
[423711656,1780326631000,-500.0,9.898e-05,2]
[423711650,1780326631000,-581.93410333,9.897e-05,2]
[423711713,1780326638000,-249.61615968,0.00011198,7]
[423711722,1780326638000,-2000.0,0.00012406,2]
[423711721,1780326638000,-231.76489404,0.00012329,2]
[423711720,1780326638000,-161.0,0.00012329,2]
[423711716,1780326638000,-248.0,0.00011974,2]
[423711718,1780326638000,-890.46,0.00011984,2]
[423711715,1780326638000,-166.66,0.00011726,2]
[423711714,1780326638000,-166.66,0.00011394,2]
[423711725,1780326638000,-487.03657759,0.00013067,2]
[423711719,1780326638000,-250.0,0.0001202,2]
[423711727,1780326638000,-500.0,0.0001315,2]
[423711733,1780326638000,-500.0,0.0001315,2]
[423711723,1780326638000,-215.65015035,0.00012842,2]
[423711724,1780326638000,-231.76489404,0.00012997,2]
[423711728,1780326638000,-502.83414164,0.0001315,2]
[423711737,1780326638000,-500.0,0.0001315,2]
[423711731,1780326638000,-446.0,0.0001315,2]
[423711736,1780326638000,-500.0,0.0001315,2]
[423711734,1780326638000,-500.0,0.0001315,2]
[423711729,1780326638000,-500.0,0.0001315,2]
[423711730,1780326638000,-500.0,0.0001315,2]
[423711732,1780326638000,-500.0,0.0001315,2]
[423711712,1780326638000,-2000.0,0.00011166,2]
[423711726,1780326638000,-298.96202774,0.0001314,2]
[423711710,1780326638000,-329.6,0.00010989,2]
[423711735,1780326638000,-500.0,0.0001315,2]
[423711711,1780326638000,-166.66,0.00011061,2]
[423711686,1780326638000,-277358.599,9.798e-05,2]
[423711696,1780326638000,-98.61615968,0.00010198,7]
[423711688,1780326638000,-2000.0,9.925e-05,2]
[423711690,1780326638000,-752.83169481,0.0001,2]
[423711689,1780326638000,-158.95,9.988e-05,2]
[423711687,1780326638000,-19023.3830883,9.868e-05,2]
[423711691,1780326638000,-250.0,0.00010007,2]
[423711693,1780326638000,-1045.76,0.00010027,2]
[423711692,1780326638000,-163.70609349,0.00010007,2]
[423711695,1780326638000,-158.95,0.00010151,2]
[423711697,1780326638000,-158.95,0.00010315,2]
[423711698,1780326638000,-166.66,0.00010397,2]
[423711699,1780326638000,-164.55,0.00010451,2]
[423711700,1780326638000,-249.61615968,0.00010498,7]
[423711703,1780326638000,-166.66,0.00010729,2]
[423711706,1780326638000,-255.0,0.00010886,2]
[423711702,1780326638000,-890.46,0.00010653,2]
[423711705,1780326638000,-249.61615968,0.00010798,7]
[423711701,1780326638000,-163.1,0.00010647,2]
[423711704,1780326638000,-160.0,0.00010765,2]
[423711707,1780326638000,-150.0,0.00010959,2]
[423711709,1780326638000,-150.0,0.00010959,2]
[423711708,1780326638000,-4548.42,0.00010959,2]
[423711717,1780326638000,-161.58198359,0.00011976,2]
[423711740,1780326638000,-500.0,0.0001315,2]
[423711694,1780326638000,-166.66,0.00010065,2]
[423711738,1780326638000,-446.0,0.0001315,2]
[423711763,1780326638000,-500.0,0.0001315,2]
[423711766,1780326638000,-446.0,0.0001315,2]
[423711771,1780326638000,-446.0,0.0001315,2]
[423711773,1780326638000,-446.0,0.0001315,2]
[423711772,1780326638000,-446.0,0.0001315,2]
[423711774,1780326638000,-446.0,0.0001315,2]
[423711775,1780326638000,-446.0,0.0001315,2]
[423711780,1780326638000,-446.0,0.0001315,2]
[423711776,1780326638000,-446.0,0.0001315,2]
[423711779,1780326638000,-446.0,0.0001315,2]
[423711777,1780326638000,-446.0,0.0001315,2]
[423711782,1780326638000,-446.0,0.0001315,2]
[423711778,1780326638000,-446.0,0.0001315,2]
[423711781,1780326638000,-446.0,0.0001315,2]
[423711786,1780326638000,-500.0,0.0001329,2]
[423711788,1780326638000,-890.46,0.00013316,2]
[423711796,1780326638000,-507.7240582,0.00013698,2]
[423711790,1780326638000,-10000.0,0.00013598,2]
[423711784,1780326638000,-460.0,0.0001315,2]
[423711792,1780326638000,-2000.0,0.00013647,2]
[423711794,1780326638000,-231.76489404,0.00013664,2]
[423711798,1780326638000,-504.50119994,0.00013698,2]
[423711800,1780326638000,-502.10763154,0.00013698,2]
[423711769,1780326638000,-408.67132594,0.0001315,2]
[423711770,1780326638000,-446.0,0.0001315,2]
[423711742,1780326638000,-446.0,0.0001315,2]
[423711768,1780326638000,-500.0,0.0001315,2]
[423711739,1780326638000,-500.0,0.0001315,2]
[423711741,1780326638000,-500.0,0.0001315,2]
[423711743,1780326638000,-500.0,0.0001315,2]
[423711744,1780326638000,-245.69706371,0.0001315,2]
[423711748,1780326638000,-500.0,0.0001315,2]
[423711747,1780326638000,-500.0,0.0001315,2]
[423711745,1780326638000,-500.0,0.0001315,2]
[423711746,1780326638000,-446.0,0.0001315,2]
[423711750,1780326638000,-500.0,0.0001315,2]
[423711749,1780326638000,-446.0,0.0001315,2]
[423711751,1780326638000,-500.0,0.0001315,2]
[423711752,1780326638000,-446.0,0.0001315,2]
[423711764,1780326638000,-500.0,0.0001315,2]
[423711754,1780326638000,-446.0,0.0001315,2]
[423711756,1780326638000,-446.0,0.0001315,2]
[423711755,1780326638000,-500.0,0.0001315,2]
[423711759,1780326638000,-500.0,0.0001315,2]
[423711758,1780326638000,-500.0,0.0001315,2]
[423711757,1780326638000,-500.0,0.0001315,2]
[423711760,1780326638000,-162.97877955,0.0001315,2]
[423711762,1780326638000,-500.0,0.0001315,2]
[423711765,1780326638000,-500.0,0.0001315,2]
[423711761,1780326638000,-446.0,0.0001315,2]
[423711767,1780326638000,-210.60640966,0.0001315,2]
[423711753,1780326638000,-500.0,0.0001315,2]
[423711846,1780326639000,-500.0,0.00013698,2]
[423711847,1780326639000,-500.0,0.00013698,2]
[423711845,1780326639000,-152.20324461,0.00013698,2]
[423711844,1780326639000,-735.28,0.00013698,2]
[423711839,1780326639000,-735.28,0.00013698,2]
[423711841,1780326639000,-735.28,0.00013698,2]
[423711838,1780326639000,-327.92067223,0.00013698,2]
[423711843,1780326639000,-735.28,0.00013698,2]
[423711840,1780326639000,-735.28,0.00013698,2]
[423711851,1780326639000,-500.0,0.00013698,2]
[423711842,1780326639000,-735.28,0.00013698,2]
[423711854,1780326639000,-500.0,0.00013698,2]
[423711862,1780326639000,-500.0,0.00013698,2]
[423711848,1780326639000,-500.0,0.00013698,2]
[423711853,1780326639000,-500.0,0.00013698,2]
[423711850,1780326639000,-500.0,0.00013698,2]
[423711855,1780326639000,-500.0,0.00013698,2]
[423711857,1780326639000,-500.0,0.00013698,2]
[423711856,1780326639000,-500.0,0.00013698,2]
[423711861,1780326639000,-500.0,0.00013698,2]
[423711858,1780326639000,-500.0,0.00013698,2]
[423711865,1780326639000,-200.0,0.00013699,2]
[423711859,1780326639000,-500.0,0.00013698,2]
[423711836,1780326639000,-500.0,0.00013698,2]
[423711849,1780326639000,-500.0,0.00013698,2]
[423711837,1780326639000,-500.0,0.00013698,2]
[423711831,1780326639000,-500.0,0.00013698,2]
[423711835,1780326639000,-500.0,0.00013698,2]
[423711804,1780326639000,-500.0,0.00013698,2]
[423711802,1780326639000,-500.0,0.00013698,2]
[423711806,1780326639000,-500.0,0.00013698,2]
[423711817,1780326639000,-500.0,0.00013698,2]
[423711816,1780326639000,-500.0,0.00013698,2]
[423711818,1780326639000,-798.5,0.00013698,2]
[423711814,1780326639000,-500.0,0.00013698,2]
[423711821,1780326639000,-500.0,0.00013698,2]
[423711808,1780326639000,-475.61764834,0.00013698,2]
[423711820,1780326639000,-798.5,0.00013698,2]
[423711812,1780326639000,-500.0,0.00013698,2]
[423711810,1780326639000,-500.0,0.00013698,2]
[423711819,1780326639000,-798.5,0.00013698,2]
[423711823,1780326639000,-500.0,0.00013698,2]
[423711863,1780326639000,-500.0,0.00013698,2]
[423711832,1780326639000,-500.0,0.00013698,2]
[423711822,1780326639000,-500.0,0.00013698,2]
[423711824,1780326639000,-500.0,0.00013698,2]
[423711830,1780326639000,-500.0,0.00013698,2]
[423711827,1780326639000,-500.0,0.00013698,2]
[423711828,1780326639000,-500.0,0.00013698,2]
[423711829,1780326639000,-500.0,0.00013698,2]
[423711825,1780326639000,-500.0,0.00013698,2]
[423711826,1780326639000,-500.0,0.00013698,2]
[423711834,1780326639000,-500.0,0.00013698,2]
[423711833,1780326639000,-500.0,0.00013698,2]
[423711860,1780326639000,-500.0,0.00013698,2]
[423711852,1780326639000,-500.0,0.00013698,2]
[423711867,1780326639000,-16963.48,0.00013699,2]
[423711897,1780326639000,-1130.29353622,0.00013699,2]
[423711896,1780326639000,-1130.29353622,0.00013699,2]
[423711899,1780326639000,-1130.29353622,0.00013699,2]
[423711895,1780326639000,-1130.29353622,0.00013699,2]
[423711898,1780326639000,-1130.29353622,0.00013699,2]
[423711901,1780326639000,-1130.29353622,0.00013699,2]
[423711903,1780326639000,-1130.29353622,0.00013699,2]
[423711902,1780326639000,-1130.29353622,0.00013699,2]
[423711904,1780326639000,-1130.29353622,0.00013699,2]
[423711905,1780326639000,-1130.29353622,0.00013699,2]
[423711908,1780326639000,-1130.29353622,0.00013699,2]
[423711906,1780326639000,-1130.29353622,0.00013699,2]
[423711894,1780326639000,-1130.29353622,0.00013699,2]
[423711910,1780326639000,-1130.29353622,0.00013699,2]
[423711915,1780326639000,-1130.29353622,0.00013699,2]
[423711913,1780326639000,-1130.29353622,0.00013699,2]
[423711914,1780326639000,-1130.29353622,0.00013699,2]
[423711916,1780326639000,-1130.29353622,0.00013699,2]
[423711917,1780326639000,-1130.29353622,0.00013699,2]
[423711920,1780326639000,-1130.29353622,0.00013699,2]
[423711925,1780326639000,-1130.29353622,0.00013699,2]
[423711921,1780326639000,-1130.29353622,0.00013699,2]
[423711919,1780326639000,-1130.29353622,0.00013699,2]
[423711923,1780326639000,-1130.29353622,0.00013699,2]
[423711864,1780326639000,-500.0,0.00013698,2]
[423711924,1780326639000,-1130.29353622,0.00013699,2]
[423711911,1780326639000,-1130.29353622,0.00013699,2]
[423711889,1780326639000,-1130.29353622,0.00013699,2]
[423711922,1780326639000,-1130.29353622,0.00013699,2]
[423711893,1780326639000,-1130.29353622,0.00013699,2]
[423711891,1780326639000,-1130.29353622,0.00013699,2]
[423711872,1780326639000,-1130.29353622,0.00013699,2]
[423711869,1780326639000,-1130.29353622,0.00013699,2]
[423711871,1780326639000,-1130.29353622,0.00013699,2]
[423711868,1780326639000,-1130.29353622,0.00013699,2]
[423711870,1780326639000,-1130.29353622,0.00013699,2]
[423711873,1780326639000,-1130.29353622,0.00013699,2]
[423711874,1780326639000,-1130.29353622,0.00013699,2]
[423711876,1780326639000,-1130.29353622,0.00013699,2]
[423711875,1780326639000,-1130.29353622,0.00013699,2]
[423711877,1780326639000,-1130.29353622,0.00013699,2]
[423711878,1780326639000,-1130.29353622,0.00013699,2]
[423711879,1780326639000,-1130.29353622,0.00013699,2]
[423711866,1780326639000,-166.66,0.00013699,2]
[423711881,1780326639000,-1130.29353622,0.00013699,2]
[423711880,1780326639000,-1130.29353622,0.00013699,2]
[423711887,1780326639000,-1130.29353622,0.00013699,2]
[423711886,1780326639000,-1130.29353622,0.00013699,2]
[423711883,1780326639000,-1130.29353622,0.00013699,2]
[423711888,1780326639000,-1130.29353622,0.00013699,2]
[423711882,1780326639000,-1130.29353622,0.00013699,2]
[423711884,1780326639000,-1130.29353622,0.00013699,2]
[423711885,1780326639000,-1130.29353622,0.00013699,2]